bitfinex-derivatives/quotes_ETHF0:USTF0_20250503
["timestamp","ask_amount","ask_price","bid_price","bid_amount"]
[1746275994192,1.09184,1831.3,1831.2,7.0484]
[1746275994387,1.09184,1831.3,1831.2,8.1403]
[1746275995197,1.09184,1831.3,1831.2,11.3481]
[1746275996388,1.6118,1831.4,1831.2,11.3481]
[1746275996592,1.6118,1831.4,1831.3,2.69104]
[1746275996593,2.70363,1831.4,1831.3,2.69104]
[1746275996994,1.09183,1831.4,1831.3,2.69104]
[1746275997198,0.8302,1831.5,1831.4,1.09175]
[1746275997199,1.09175,1831.5,1831.4,1.09175]
[1746275997397,1.09175,1831.5,1831.4,6.80035]
[1746275998097,1.09175,1831.5,1831.4,10.51835]
[1746276003698,1.09171,1831.6,1831.5,1.0917]
[1746276003995,1.09171,1831.6,1831.5,3.5738]
[1746276004297,1.09171,1831.6,1831.5,7.2918]
[1746276004892,1.09171,1831.6,1831.5,6.2001]
[1746276005095,1.09171,1831.6,1831.5,3.718]
[1746276005096,2.82631,1831.6,1831.5,3.718]
[1746276005295,3.66651,1831.6,1831.5,3.718]
[1746276005998,12.2917873,1831.6,1831.5,3.718]
[1746276006192,1.09184,1831.3,1831.2,4.8253]
[1746276006996,2.81054,1831.3,1831.2,4.8253]
[1746276007295,2.81054,1831.3,1831.2,9.6352]
[1746276007499,1.93191,1831.6,1831.3,1.09184]
[1746276007694,1.09182,1831.4,1831.3,1.6337]
[1746276008298,1.09182,1831.4,1831.3,5.3517]
[1746276008900,2.81052,1831.4,1831.3,5.3517]
[1746276009198,2.81052,1831.4,1831.3,3.718]
[1746276010698,6.43632108,1831.4,1831.3,3.718]
[1746276011293,6.01832,1831.4,1831.3,3.718]
[1746276012201,6.4364728,1831.4,1831.3,3.718]
[1746276012896,6.01832,1831.4,1831.3,3.718]
[1746276013403,6.43662417,1831.4,1831.3,3.718]
[1746276013600,6.01832,1831.4,1831.3,3.718]
[1746276014501,6.43685347,1831.4,1831.3,3.718]
[1746276014803,6.01832,1831.4,1831.3,3.718]
[1746276015605,6.4368558,1831.4,1831.3,3.718]
[1746276015800,6.4369075,1831.4,1831.3,3.718]
[1746276016702,1.09182,1831.4,1831.3,3.718]
[1746276016902,2.67262,1831.4,1831.3,4.5232]
[1746276017304,2.67262,1831.4,1831.3,6.1266]
[1746276020207,1.09182,1831.4,1831.3,7.21844]
[1746276021412,1.09182,1831.4,1831.3,6.1266]
[1746276021602,1.09182,1831.4,1831.3,9.3344]
[1746276023609,1.09182,1831.4,1831.3,10.42624]
[1746276023809,1.09182,1831.4,1831.3,9.3344]
[1746276027510,1.09182,1831.4,1831.3,7.731]
[1746276027904,1.91572,1831.4,1831.3,7.731]
[1746276030237,0.8414,1831.6,1831.3,7.731]
[1746276030442,1.09168,1831.6,1831.5,4.29951]
[1746276031134,2.77078,1831.6,1831.5,8.6137]
[1746276031639,3.18975352,1831.6,1831.5,8.6137]
[1746276031828,3.18975352,1831.6,1831.5,6.9258]
[1746276032033,3.18975352,1831.6,1831.5,3.718]
[1746276032717,3.18977034,1831.6,1831.5,3.718]
[1746276032918,3.18977034,1831.6,1831.5,7.28712]
[1746276033318,2.77078,1831.6,1831.5,7.28712]
[1746276034021,1.09168,1831.6,1831.5,7.28712]
[1746276034311,1.09165,1831.7,1831.6,1.09165]
[1746276034508,1.09166,1831.6,1831.5,5.62947]
[1746276035117,5.5861,1831.8,1831.6,1.09165]
[1746276035118,1.09165,1831.7,1831.6,1.09165]
[1746276035315,1.51059219,1831.7,1831.6,1.09165]
[1746276036419,1.5105349,1831.7,1831.6,1.09165]
[1746276036619,1.09165,1831.7,1831.6,1.09165]
[1746276040727,1.09159,1831.8,1831.7,1.09158]
[1746276040927,1.09159,1831.8,1831.7,4.29938]
[1746276041132,1.09159,1831.8,1831.7,8.01738]
[1746276043033,2.66543,1831.9,1831.8,1.09154]
[1746276043232,2.66543,1831.9,1831.8,1.89574]
[1746276044128,2.66543,1831.9,1831.8,5.61374]
[1746276045432,2.66543,1831.9,1831.8,3.718]
[1746276045724,3.46633,1831.9,1831.8,3.718]
[1746276048929,3.88467354,1831.9,1831.8,3.718]
[1746276049229,3.46633,1831.9,1831.8,3.718]
[1746276050134,3.88470204,1831.9,1831.8,3.718]
[1746276050341,3.46633,1831.9,1831.8,3.718]
[1746276050539,3.46633,1831.9,1831.8,4.80954]
[1746276050940,3.46633,1831.9,1831.8,7.42844]
[1746276051243,1.5739,1831.9,1831.8,7.42844]
[1746276051629,1.09148,1831.9,1831.8,7.42844]
[1746276051830,1.09141,1832.1,1832.0,1.09143]
[1746276052331,1.09141,1832.1,1832.0,4.80943]
[1746276052532,1.09141,1832.1,1832.0,6.53963]
[1746276053543,1.6193,1832.2,1832.1,1.09137]
[1746276053737,1.6193,1832.2,1832.1,6.82757]
[1746276054136,1.89709,1832.3,1832.2,1.09131]
[1746276054337,1.89709,1832.3,1832.2,3.62131]
[1746276055144,1.89709,1832.3,1832.2,7.33931]
[1746276056638,1.89709,1832.3,1832.2,6.248]
[1746276056943,1.89709,1832.3,1832.2,7.33931]
[1746276057345,1.09129,1832.3,1832.2,3.718]
[1746276057545,1.94119,1832.3,1832.2,3.718]
[1746276057746,2.35897942,1832.3,1832.2,3.718]
[1746276057942,2.35899386,1832.3,1832.2,3.718]
[1746276059746,2.35909651,1832.3,1832.2,3.718]
[1746276060447,2.36510446,1832.3,1832.2,3.718]
[1746276061747,4.07730446,1832.3,1832.2,3.718]
[1746276064734,4.07761425,1832.3,1832.2,3.718]
[1746276066447,4.07774484,1832.3,1832.2,3.718]
[1746276068250,4.077852,1832.3,1832.2,3.718]
[1746276069251,1.09143,1832.0,1831.9,3.2078]
[1746276069449,1.50988405,1832.0,1831.9,3.2078]
[1746276070151,1.50988405,1832.0,1831.9,6.9258]
[1746276070351,2.37858405,1832.0,1831.9,6.9258]
[1746276071853,2.37870237,1832.0,1831.9,6.9258]
[1746276073354,2.37870237,1832.0,1831.9,3.718]
[1746276075458,2.37868331,1832.0,1831.9,3.718]
[1746276075850,1.96013,1832.0,1831.9,3.718]
[1746276076052,2.37868325,1832.0,1831.9,3.718]
[1746276076351,1.50998325,1832.0,1831.9,3.718]
[1746276076555,1.09143,1832.0,1831.9,4.5393]
[1746276076748,1.09143,1832.0,1831.9,6.1838]
[1746276077661,1.51000668,1832.0,1831.9,6.1838]
[1746276079161,1.51001269,1832.0,1831.9,6.1838]
[1746276079665,1.09141,1832.1,1831.9,14.3916]
[1746276079867,1.09133,1832.2,1832.1,1.09135]
[1746276080065,1.09728795,1832.3,1832.1,1.09135]
[1746276080278,1.09728795,1832.3,1832.2,0.8107]
[1746276080461,3.12759781,1832.3,1832.2,0.8107]
[1746276080970,3.12759235,1832.3,1832.2,0.8107]
[1746276081165,3.12759235,1832.3,1832.2,4.5287]
[1746276082566,2.70908795,1832.3,1832.2,4.5287]
[1746276083567,1.09728795,1832.3,1832.2,4.5287]
[1746276085470,1.51574148,1832.3,1832.2,4.5287]
[1746276085770,1.51575213,1832.3,1832.2,4.5287]
[1746276086170,1.09728795,1832.3,1832.2,4.5287]
[1746276086370,1.09728795,1832.3,1832.2,5.62001]
[1746276087475,0.00600795,1832.3,1832.2,5.62001]
[1746276089472,1.09103,1832.7,1832.3,2.72812]
[1746276089665,1.09103,1832.7,1832.6,1.09103]
[1746276090370,1.09099,1832.8,1832.7,1.09101]
[1746276090569,1.09099,1832.8,1832.7,1.94971]
[1746276090770,1.09093,1832.9,1832.7,1.94971]
[1746276090974,1.09093,1832.9,1832.8,0.8218]
[1746276091775,1.09093,1832.9,1832.8,4.0296]
[1746276092177,1.09093,1832.9,1832.8,4.5398]
[1746276093979,1.09089,1832.9,1832.8,8.83852]
[1746276094177,1.09085,1833.0,1832.9,1.09088]
[1746276094369,1.09085,1833.0,1832.8,8.83851]
[1746276094772,1.09089,1832.9,1832.8,8.83851]
[1746276095271,1.09089,1832.9,1832.8,9.4133]
[1746276098180,1.09089,1832.9,1832.8,10.50425]
[1746276098980,1.09089,1832.9,1832.8,9.4133]
[1746276101380,2.76329,1833.0,1832.8,10.50419]
[1746276101579,1.09089,1833.0,1832.9,2.72379]
[1746276102079,1.09089,1833.0,1832.9,5.3509]
[1746276102282,1.09089,1833.0,1832.9,6.44179]
[1746276110591,2.81782,1833.1,1833.0,1.09083]
[1746276110792,2.81782,1833.1,1833.0,4.29863]
[1746276111190,2.81782,1833.1,1833.0,8.01663]
[1746276112192,2.81782,1833.1,1833.0,6.9258]
[1746276112490,2.81782,1833.1,1833.0,8.01663]
[1746276113283,2.81782,1833.1,1833.0,8.88643]
[1746276114985,2.81782,1833.1,1833.0,7.7956]
[1746276115184,2.81782,1833.1,1833.0,8.88643]
[1746276115485,2.81782,1833.1,1833.0,7.7956]
[1746276115690,2.81782,1833.1,1833.0,6.9258]
[1746276115884,2.81782,1833.1,1833.0,3.718]
[1746276116279,2.81782,1833.1,1833.0,6.9258]
[1746276116490,2.81782,1833.1,1833.0,3.718]
[1746276117293,3.23599014,1833.1,1833.0,3.718]
[1746276117484,4.09269014,1833.1,1833.0,3.718]
[1746276118891,4.09291436,1833.1,1833.0,3.718]
[1746276120391,9.09291436,1833.1,1833.0,3.718]
[1746276120592,4.09291436,1833.1,1833.0,3.718]
[1746276121993,4.09325108,1833.1,1833.0,3.718]
[1746276127393,4.09345407,1833.1,1833.0,3.718]
[1746276129796,3.23675407,1833.1,1833.0,3.718]
[1746276130192,4.09035407,1833.1,1833.0,3.718]
[1746276130996,4.09026957,1833.1,1833.0,3.718]
[1746276131994,3.23666957,1833.1,1833.0,3.718]
[1746276132197,3.23666957,1833.1,1833.0,6.2597]
[1746276134000,3.23666957,1833.1,1833.0,7.35053]
[1746276134301,1.09082,1833.1,1833.0,7.35053]
[1746276134489,1.50960706,1833.1,1833.0,6.2597]
[1746276134688,1.09082,1833.1,1833.0,6.2597]
[1746276139310,1.09082,1833.1,1833.0,7.35053]
[1746276139900,1.09082,1833.1,1833.0,6.2597]
[1746276141609,1.09082,1833.1,1833.0,3.718]
[1746276141910,1.50950072,1833.1,1833.0,3.718]
[1746276142204,1.50950072,1833.1,1832.7,18.08820691]
[1746276142205,12.10448072,1833.1,1832.7,14.61520691]
[1746276142408,1.09125,1832.3,1832.2,20.58777764]
[1746276142612,8.19573072,1832.3,1832.2,16.05422764]
[1746276142800,13.19573072,1832.3,1832.2,11.20124764]
[1746276143304,13.62021685,1832.3,1832.2,9.54525764]
[1746276143601,13.61945774,1832.3,1832.2,6.73144764]
[1746276143807,13.61945774,1832.3,1832.2,4.02499764]
[1746276144715,8.61945774,1832.3,1832.2,2.76326764]
[1746276145009,8.19497161,1832.3,1832.2,2.76326764]
[1746276145507,8.19497161,1832.3,1832.2,12.76326764]
[1746276145915,8.19497161,1832.3,1832.2,10.0]
[1746276146101,8.19497161,1832.3,1832.2,11.6918]
[1746276146814,8.19497161,1832.3,1832.2,11.96459175]
[1746276147214,4.29905,1832.3,1832.2,11.96459175]
[1746276147410,1.09125,1832.3,1832.2,21.97619062]
[1746276148112,1.09125,1832.3,1832.2,25.69419062]
[1746276151207,1.09125,1832.3,1832.2,28.90199062]
[1746276155313,1.09122,1832.4,1832.2,28.90199062]
[1746276155510,1.09122,1832.4,1832.3,1.09123]
[1746276155710,1.09122,1832.4,1832.3,21.10282887]
[1746276156211,1.09122,1832.4,1832.3,23.72959887]
[1746276157213,1.09122,1832.4,1832.3,3.718]
[1746276162819,3.57142,1832.4,1832.3,3.718]
[1746276163120,1.09125,1832.3,1832.2,4.8996]
[1746276163520,1.09125,1832.3,1832.2,1.6918]
[1746276163713,2.72075,1832.3,1832.2,1.6918]
[1746276164121,3.54165,1832.3,1832.2,5.4098]
[1746276164820,3.54165,1832.3,1832.2,3.99079175]
[1746276169416,3.95886561,1832.3,1832.2,3.99079175]
[1746276170120,3.95886561,1832.3,1832.2,3.718]
[1746276170723,3.9592166,1832.3,1832.2,3.718]
[1746276171223,1.09131,1832.2,1832.1,2.00959175]
[1746276171417,3.1915766,1832.2,1832.1,2.00959175]
[1746276172222,3.1915766,1832.2,1832.1,1.7368]
[1746276175117,1.5088766,1832.2,1832.1,22.02119062]
[1746276175422,1.09122,1832.4,1832.3,1.09125]
[1746276175618,1.09119,1832.4,1832.3,11.10284887]
[1746276175821,1.09119,1832.4,1832.3,21.37564062]
[1746276176021,1.09117,1832.5,1832.3,26.18794062]
[1746276176221,1.09117,1832.5,1832.4,11.61609887]
[1746276176624,1.50960647,1832.5,1832.4,11.61609887]
[1746276176818,1.50960647,1832.5,1832.4,21.61609887]
[1746276177217,1.50960647,1832.5,1832.4,25.33409887]
[1746276182325,1.50960647,1832.5,1832.4,26.42528887]
[1746276182326,1.09117,1832.5,1832.4,26.42528887]
[1746276182825,1.09117,1832.5,1832.4,25.33409887]
[1746276185429,4.29897,1832.5,1832.4,15.33409887]
[1746276185628,4.71726387,1832.5,1832.4,15.33409887]
[1746276186034,1.50946387,1832.5,1832.4,15.33409887]
[1746276186828,1.50946387,1832.5,1832.4,5.3225]
[1746276187227,1.50946387,1832.5,1832.4,1.6045]
[1746276188235,1.50946387,1832.5,1832.4,5.3225]
[1746276189135,1.50946387,1832.5,1832.4,1.6045]
[1746276190237,1.50946387,1832.5,1832.4,25.33409887]
[1746276190533,1.09117,1832.5,1832.4,25.33409887]
[1746276190728,4.71834276,1832.6,1832.4,26.69804062]
[1746276190935,4.71834276,1832.6,1832.5,12.75722887]
[1746276191131,4.71834276,1832.6,1832.5,17.32712887]
[1746276191330,4.71834276,1832.6,1832.5,27.32712887]
[1746276191836,4.71834276,1832.6,1832.5,26.23599887]
[1746276192034,4.71834276,1832.6,1832.5,27.32712887]
[1746276192233,4.71834276,1832.6,1832.5,26.23599887]
[1746276192537,5.45631366,1832.6,1832.5,30.80772062]
[1746276192935,6.54738366,1832.6,1832.5,30.80772062]
[1746276194237,5.45631366,1832.6,1832.5,30.80772062]
[1746276195239,6.54738366,1832.6,1832.5,30.80772062]
[1746276196331,1.09107,1832.6,1832.5,30.80772062]
[1746276197541,1.09106,1832.7,1832.6,1.09105]
[1746276197728,1.09106,1832.7,1832.6,2.4482]
[1746276197933,1.09106,1832.7,1832.6,22.45979887]
[1746276198436,1.09106,1832.7,1832.6,12.45979887]
[1746276200633,1.09107,1832.6,1832.5,6.9258]
[1746276200836,2.36238769,1832.6,1832.5,6.9258]
[1746276201039,2.36238769,1832.6,1832.5,16.93739887]
[1746276201040,4.07428769,1832.6,1832.5,16.93739887]
[1746276202139,4.07428769,1832.6,1832.5,26.93739887]
[1746276202443,4.07428769,1832.6,1832.5,16.93739887]
[1746276202646,4.07455203,1832.6,1832.5,16.93739887]
[1746276202946,2.36265203,1832.6,1832.5,16.93739887]
[1746276203244,2.36277308,1832.6,1832.5,18.68239887]
[1746276204444,2.36297935,1832.6,1832.5,18.68239887]
[1746276205243,2.36297935,1832.6,1832.5,18.95519062]
[1746276206243,1.94447,1832.6,1832.5,18.95519062]
[1746276206443,2.36308987,1832.6,1832.5,18.95519062]
[1746276208149,2.36311959,1832.6,1832.5,18.95519062]
[1746276209946,2.36310278,1832.6,1832.5,18.95519062]
[1746276211956,2.36310278,1832.6,1832.5,15.74739062]
[1746276213260,2.36310278,1832.6,1832.5,3.718]
[1746276214158,1.09119,1832.4,1832.3,4.8594]
[1746276214346,1.50982278,1832.4,1832.3,4.8594]
[1746276214861,2.30602278,1832.4,1832.3,4.8594]
[1746276215356,2.30608413,1832.4,1832.3,8.5774]
[1746276217160,2.30600312,1832.4,1832.3,8.5774]
[1746276217955,2.30600312,1832.4,1832.3,3.718]
[1746276218162,5.51380312,1832.4,1832.3,3.718]
[1746276218363,7.22060312,1832.4,1832.3,3.718]
[1746276219164,1.09137,1832.1,1832.0,1.93099175]
[1746276219366,1.50998312,1832.1,1832.0,1.93099175]
[1746276220063,1.50998312,1832.1,1832.0,5.64899175]
[1746276221367,1.50998312,1832.1,1832.0,3.99079175]
[1746276221963,3.22298312,1832.1,1832.0,3.99079175]
[1746276222258,3.22298312,1832.1,1832.0,0.27279175]
[1746276222467,3.22244888,1832.1,1832.0,0.27279175]
[1746276222668,1.09148,1831.9,1831.8,0.27279175]
[1746276222862,1.50955888,1831.9,1831.8,1.90599175]
[1746276223768,1.09154,1831.8,1831.7,0.999]
[1746276224063,3.15921888,1831.8,1831.7,0.999]
[1746276224466,3.59666232,1831.8,1831.7,0.999]
[1746276224769,3.15921888,1831.8,1831.7,1.27179175]
[1746276224969,3.59021587,1831.8,1831.7,1e-05]
[1746276226067,3.61219645,1831.8,1831.7,1e-05]
[1746276226266,7.25418054,1831.8,1831.7,1e-05]
[1746276226466,1.0919,1831.2,1831.1,0.27279175]
[1746276226666,1.0919,1831.2,1831.1,20.28439062]
[1746276227064,3.23115299,1831.2,1831.1,20.28439062]
[1746276227370,2.7913,1831.2,1831.1,20.28439062]
[1746276227663,1.09202,1831.0,1830.9,0.27279175]
[1746276227867,4.29982,1831.0,1830.9,0.27279175]
[1746276228070,4.29982,1831.0,1830.9,3.99079175]
[1746276228272,1.09202,1831.0,1830.9,22.84044062]
[1746276229361,1.09199,1831.1,1830.9,23.93251062]
[1746276229566,1.09199,1831.1,1830.9,13.99079175]
[1746276229767,1.09196,1831.1,1831.0,8.84964887]
[1746276230069,1.09196,1831.1,1831.0,12.56764887]
[1746276230265,2.68126,1831.1,1831.0,24.14964887]
[1746276230768,1.09196,1831.1,1831.0,24.14964887]
[1746276230970,1.09196,1831.1,1831.0,24.42244062]
[1746276231470,4.29975,1831.2,1831.0,30.51445062]
[1746276231662,4.29975,1831.2,1831.1,11.27804887]
[1746276231860,4.29975,1831.2,1831.1,21.55084062]
[1746276232065,1.09195,1831.2,1831.1,21.55084062]
[1746276232567,1.09188,1831.3,1831.1,22.64280062]
[1746276232763,3.64198409,1831.4,1831.1,22.64280062]
[1746276232764,3.64198409,1831.4,1831.3,9.12244062]
[1746276232965,4.73376409,1831.4,1831.3,9.12244062]
[1746276233166,4.73376409,1831.4,1831.3,24.43574062]
[1746276233462,1.09178,1831.4,1831.3,24.43574062]
[1746276238675,1.09166,1831.6,1831.3,24.43574062]
[1746276238876,1.09166,1831.6,1831.5,8.84964887]
[1746276239174,1.09166,1831.6,1831.5,12.56764887]
[1746276239375,1.09166,1831.6,1831.5,25.10954887]
[1746276239769,2.78426,1831.6,1831.5,25.10954887]
[1746276242478,1.09166,1831.6,1831.5,25.10954887]
[1746276243272,1.09166,1831.6,1831.5,26.20126887]
[1746276243468,4.29943,1831.7,1831.6,1.09166]
[1746276243673,1.09163,1831.7,1831.6,12.58790062]
[1746276243977,1.20076222,1831.8,1831.6,22.58790062]
[1746276244181,1.20076222,1831.8,1831.7,10.52104887]
[1746276244371,1.20076222,1831.8,1831.7,20.52104887]
[1746276245079,1.20076222,1831.8,1831.7,24.23904887]
[1746276250384,1.09158,1831.8,1831.7,24.23904887]
[1746276252095,1.09158,1831.8,1831.7,24.51184062]
[1746276252279,1.09158,1831.8,1831.7,25.60344062]
[1746276252585,1.09152,1831.9,1831.7,24.51184062]
[1746276252792,1.09152,1831.9,1831.8,2.5141]
[1746276253090,1.09152,1831.9,1831.8,12.45528887]
[1746276253277,1.09152,1831.9,1831.8,26.17328887]
[1746276255990,1.09152,1831.9,1831.8,25.08174887]
[1746276256186,1.09152,1831.9,1831.8,6.2321]
[1746276256386,1.09152,1831.9,1831.8,5.3681]
[1746276256888,4.73960868,1831.9,1831.8,5.3681]
[1746276257089,4.73960868,1831.9,1831.5,0.27279175]
[1746276257090,6.37694868,1831.9,1831.5,0.27279175]
[1746276257386,1.09164,1831.7,1831.6,8.84964887]
[1746276257785,1.09166,1831.6,1831.5,2.67479175]
[1746276257986,1.09166,1831.6,1831.5,12.67479175]
[1746276258190,1.09166,1831.6,1831.5,24.14194887]
[1746276258494,1.09166,1831.6,1831.5,5.2923]
[1746276258789,1.53236075,1831.6,1831.5,3.718]
[1746276258979,1.53235263,1831.6,1831.5,3.718]
[1746276259183,1.09172,1831.5,1831.4,0.27279175]
[1746276259379,4.09131263,1831.5,1831.4,0.27279175]
[1746276260197,4.09149417,1831.5,1831.4,3.99079175]
[1746276261993,4.09185911,1831.5,1831.4,3.99079175]
[1746276262183,4.09185911,1831.5,1831.4,3.718]
[1746276263088,1.09184,1831.3,1831.2,0.27279175]
[1746276263288,1.53307911,1831.3,1831.2,0.27279175]
[1746276263794,3.15507911,1831.3,1831.2,0.27279175]
[1746276264096,3.15507911,1831.3,1831.2,3.99079175]
[1746276265593,3.15492627,1831.3,1831.2,3.99079175]
[1746276265793,1.09184,1831.3,1831.2,24.46954062]
[1746276265997,1.53291205,1831.3,1831.2,25.33304062]
[1746276266197,1.09184,1831.3,1831.2,25.33304062]
[1746276270796,3.64198409,1831.6,1831.3,1.36463175]
[1746276270999,1.09174,1831.5,1831.4,1.36457175]
[1746276271203,1.09174,1831.5,1831.4,13.01097175]
[1746276271393,1.09171,1831.6,1831.4,21.86062062]
[1746276271598,4.73363409,1831.7,1831.6,8.84964887]
[1746276271798,3.64198409,1831.7,1831.6,9.12244062]
[1746276272002,3.64198409,1831.7,1831.6,21.92320062]
[1746276273410,4.73358409,1831.7,1831.6,21.92320062]
[1746276274300,4.73358409,1831.7,1831.6,20.83154062]
[1746276275107,1.0916,1831.7,1831.6,20.83154062]
[1746276276209,1.0916,1831.7,1831.6,10.83154062]
[1746276277609,1.0916,1831.7,1831.6,11.92320062]
[1746276277799,1.09166,1831.6,1831.5,4.5255]
[1746276278004,2.73606,1831.6,1831.5,3.718]
[1746276278306,3.17690897,1831.6,1831.5,3.718]
[1746276278502,4.08790897,1831.6,1831.5,3.718]
[1746276279108,1.09172,1831.5,1831.4,1.7186]
[1746276279308,2.73612,1831.5,1831.4,11.66002887]
[1746276279508,1.6444,1831.5,1831.4,11.66002887]
[1746276279811,2.73612,1831.5,1831.4,10.56824887]
[1746276280007,1.09178,1831.4,1831.3,0.8619]
[1746276280209,1.09178,1831.4,1831.3,16.23997887]
[1746276280210,2.73618,1831.4,1831.3,16.23997887]
[1746276283514,2.73618,1831.4,1831.3,15.14814887]
[1746276284913,2.73618,1831.4,1831.3,6.2985]
[1746276285120,2.73618,1831.4,1831.3,3.718]
[1746276289829,2.73618,1831.4,1831.3,5.2995]
[1746276291032,2.73618,1831.4,1831.3,6.39134]
[1746276291426,1.09178,1831.4,1831.3,25.51378062]
[1746276291928,1.09178,1831.4,1831.3,28.72158062]
[1746276292535,1.09175,1831.5,1831.4,1.09173]
[1746276292728,1.09175,1831.5,1831.4,2.67043]
[1746276292925,1.09171,1831.6,1831.5,1.0917]
[1746276293130,1.09171,1831.6,1831.5,16.15444887]
[1746276293331,1.09171,1831.6,1831.5,16.42724062]
[1746276293637,1.09171,1831.6,1831.5,26.42724062]
[1746276297437,1.09171,1831.6,1831.5,26.42726062]
[1746276300041,2.50068908,1831.6,1831.5,5.56949175]
[1746276300442,2.50068908,1831.6,1831.5,6.66121175]
[1746276300740,2.50068908,1831.6,1831.5,15.51086062]
[1746276300939,2.05921,1831.6,1831.5,15.51086062]
[1746276301742,1.09171,1831.6,1831.5,15.51086062]
[1746276301942,1.09164,1831.7,1831.6,1.36443175]
[1746276302137,1.09164,1831.7,1831.6,3.94793175]
[1746276302338,1.09164,1831.7,1831.6,22.79758062]
[1746276303846,2.67282,1831.9,1831.8,1.09154]
[1746276304145,3.11430041,1831.9,1831.8,4.80954]
[1746276304346,3.11430041,1831.9,1831.8,5.75714]
[1746276304545,2.67282,1831.9,1831.8,14.60678887]
[1746276304742,0.4414187,1831.9,1831.8,14.87958062]
[1746276305046,4.73345409,1832.0,1831.9,1.09148]
[1746276305245,5.17479178,1832.0,1831.9,12.55022887]
[1746276305446,5.17479178,1832.0,1831.9,3.70058]
[1746276305944,5.17479178,1832.0,1831.9,2.6091]
[1746276306244,6.77459178,1832.0,1831.9,6.3271]
[1746276306745,6.77459178,1832.0,1831.9,15.17674887]
[1746276307441,4.08332178,1832.0,1831.9,16.54102062]
[1746276307635,3.64198409,1832.0,1831.9,16.54102062]
[1746276308346,5.17449133,1832.0,1831.9,15.44954062]
[1746276308546,7.73789133,1832.0,1831.9,15.17674887]
[1746276309140,7.73789133,1832.0,1831.9,3.718]
[1746276310238,1.09154,1831.8,1831.7,4.8103]
[1746276310440,1.09154,1831.8,1831.7,24.75154887]
[1746276310647,1.09154,1831.8,1831.7,25.02434062]
[1746276310942,2.73204,1831.8,1831.7,23.93274062]
[1746276311145,2.73204,1831.8,1831.7,27.65074062]
[1746276311441,2.73204,1831.8,1831.7,3.99079175]
[1746276311646,3.17313032,1831.8,1831.7,3.718]
[1746276312143,3.17317795,1831.8,1831.7,3.99079175]
[1746276312548,3.17317795,1831.8,1831.7,0.27279175]
[1746276313047,1.0916,1831.7,1831.6,5.39269175]
[1746276313349,4.06833795,1831.7,1831.6,24.24234062]
[1746276313737,1.09166,1831.6,1831.5,2.19489175]
[1746276313942,1.09172,1831.5,1831.4,1.99759175]
[1746276314143,1.09172,1831.5,1831.4,16.80737175]
[1746276314344,1.09172,1831.5,1831.4,24.56524062]
[1746276315053,1.53302135,1831.5,1831.4,22.56764887]
[1746276315350,3.27342135,1831.5,1831.4,22.56764887]
[1746276315548,3.27342135,1831.5,1831.4,3.718]
[1746276316151,1.09178,1831.4,1831.3,3.48059175]
[1746276316353,4.21138135,1831.4,1831.3,3.48059175]
[1746276317150,4.21138135,1831.4,1831.3,7.19859175]
[1746276317546,4.21136379,1831.4,1831.3,7.19859175]
[1746276318654,4.21136379,1831.4,1831.3,3.99079175]
[1746276319149,4.21136379,1831.4,1831.3,0.27279175]
[1746276319356,4.21128364,1831.4,1831.3,0.27279175]
[1746276322958,4.21106134,1831.4,1831.3,0.27279175]
[1746276324161,0.44098134,1831.4,1831.2,1.87009175]
[1746276324462,1.09178,1831.4,1831.3,9.12244062]
[1746276324661,1.09178,1831.4,1831.3,10.89704062]
[1746276324854,1.09178,1831.4,1831.3,22.57094062]
[1746276325055,1.09178,1831.4,1831.3,26.28894062]
[1746276329367,1.53246107,1831.4,1831.3,26.28894062]
[1746276329664,1.53247849,1831.4,1831.3,26.28894062]
[1746276330167,1.53248672,1831.4,1831.3,26.28894062]
[1746276330964,1.09178,1831.4,1831.3,26.28894062]
[1746276331868,1.53246889,1831.4,1831.3,26.28894062]
[1746276332366,1.09178,1831.4,1831.3,26.28894062]
[1746276332969,1.5324584,1831.4,1831.3,26.28894062]
[1746276333170,1.5324584,1831.4,1831.3,22.57094062]
[1746276333565,1.5324584,1831.4,1831.3,11.68644062]
[1746276333768,3.2271742,1831.4,1831.3,1.94669175]
[1746276334869,1.0919,1831.2,1831.1,2.17449175]
[1746276335067,1.0919,1831.2,1831.1,13.75759175]
[1746276335267,1.0919,1831.2,1831.1,22.60724062]
[1746276338072,1.53319926,1831.2,1831.1,22.60724062]
[1746276338370,1.53319926,1831.2,1831.1,3.75759175]
[1746276338767,3.17569926,1831.2,1831.1,3.75759175]
[1746276340377,1.0919,1831.2,1831.1,23.69920062]
[1746276341073,12.00938,1831.5,1831.2,1.36467175]
[1746276341074,1.09186,1831.3,1831.2,1.36467175]
[1746276341270,1.53364675,1831.3,1831.2,2.98157175]
[1746276341477,1.09186,1831.3,1831.2,21.83122062]
[1746276341967,1.53364238,1831.3,1831.2,21.83122062]
[1746276342169,1.53364238,1831.3,1831.2,25.54922062]
[1746276342365,1.53375422,1831.3,1831.2,28.75702062]
[1746276342567,1.09179,1831.4,1831.3,1.09181]
[1746276342774,1.09179,1831.4,1831.3,2.70871]
[1746276342973,1.09179,1831.4,1831.3,21.55835887]
[1746276343176,1.09179,1831.4,1831.3,25.27635887]
[1746276343475,1.09178,1831.4,1831.3,25.27635887]
[1746276344670,1.09178,1831.4,1831.3,25.54915062]
[1746276347572,1.09176,1831.5,1831.3,25.54915062]
[1746276347773,1.09176,1831.5,1831.4,3.6467]
[1746276347974,1.5336202,1831.5,1831.4,13.58812887]
[1746276348172,1.09176,1831.5,1831.4,26.21434887]
[1746276348375,1.53356702,1831.5,1831.4,26.48714062]
[1746276348577,1.09171,1831.6,1831.4,27.57892062]
[1746276348882,1.09171,1831.6,1831.5,2.83752]
[1746276349072,1.53348841,1831.6,1831.5,15.40516887]
[1746276349272,1.53348841,1831.6,1831.5,25.40516887]
[1746276349673,12.57851409,1831.9,1831.5,25.40516887]
[1746276349674,1.09163,1831.7,1831.6,1.09162]
[1746276349877,1.53330777,1831.7,1831.6,1.09162]
[1746276350076,1.53330736,1831.7,1831.6,19.94126887]
[1746276350374,0.44167736,1831.7,1831.6,23.42186062]